bitfinex/quotes_BTCUSD_20240815
["timestamp","ask_amount","ask_price","bid_price","bid_amount"]
[1723748416797,1.38677777,57914.0,57913.0,0.00822]
[1723748417002,1.38107177,57914.0,57913.0,0.00822]
[1723748417204,1.38607177,57914.0,57913.0,0.00822]
[1723748417424,0.86917823,57914.0,57913.0,0.07282]
[1723748417640,0.17350023,57914.0,57913.0,0.07282]
[1723748417852,0.52983923,57914.0,57913.0,0.07382]
[1723748418056,0.87517823,57914.0,57913.0,0.07382]
[1723748418258,0.86417823,57914.0,57913.0,0.07278]
[1723748418462,0.98512805,57914.0,57913.0,0.07278]
[1723748418665,1.50202159,57914.0,57913.0,0.00818]
[1723748418869,0.52483923,57914.0,57913.0,0.00918]
[1723748419278,0.69039377,57914.0,57913.0,0.00818]
[1723748419486,1.03573277,57914.0,57913.0,0.00818]
[1723748419693,1.03973277,57914.0,57913.0,0.00818]
[1723748419900,1.49504505,57914.0,57913.0,0.00918]
[1723748420107,1.81414505,57914.0,57913.0,0.00818]
[1723748420339,2.15948405,57914.0,57913.0,0.00818]
[1723748420553,2.63452903,57914.0,57913.0,0.01018]
[1723748420796,2.28725149,57914.0,57913.0,0.00918]
[1723748421015,2.29710832,57914.0,57913.0,0.00918]
[1723748421242,1.5061354,57914.0,57913.0,0.00918]
[1723748421451,1.40907177,57914.0,57913.0,0.00818]
[1723748421670,1.38607177,57914.0,57913.0,0.00818]
[1723748421903,1.40007177,57914.0,57913.0,0.00918]
[1723748422111,1.98444785,57914.0,57913.0,0.00918]
[1723748422326,1.98444785,57914.0,57901.0,0.00822]
[1723748422327,0.172705,57902.0,57901.0,0.00822]
[1723748422577,1.52327428,57902.0,57901.0,0.00822]
[1723748422784,1.96436631,57902.0,57901.0,0.00822]
[1723748422994,1.97131007,57902.0,57901.0,0.00822]
[1723748423198,1.98736256,57902.0,57901.0,0.00822]
[1723748423425,1.98736004,57902.0,57901.0,0.00822]
[1723748423629,1.97131007,57902.0,57901.0,0.00822]
[1723748424000,1.98159455,57902.0,57901.0,0.00822]
[1723748424216,1.05478757,57902.0,57901.0,0.00922]
[1723748424385,1.04908154,57902.0,57901.0,0.00922]
[1723748425253,1.04991277,57902.0,57901.0,0.00922]
[1723748425393,1.06391277,57902.0,57901.0,0.00922]
[1723748425612,1.19084485,57902.0,57901.0,0.00822]
[1723748426142,1.22784485,57902.0,57901.0,0.00922]
[1723748426358,1.57325585,57902.0,57901.0,0.00922]
[1723748426585,1.55925585,57902.0,57901.0,0.00822]
[1723748426797,1.55125585,57902.0,57901.0,0.00922]
[1723748427044,1.56396272,57902.0,57901.0,0.00922]
[1723748427376,1.38703064,57902.0,57901.0,0.00822]
[1723748427617,1.39803064,57902.0,57901.0,0.00922]
[1723748427828,1.05261964,57902.0,57901.0,0.00922]
[1723748428279,1.39803064,57902.0,57901.0,0.00922]
[1723748428482,1.5488337,57902.0,57901.0,0.00922]
[1723748428927,1.06361964,57902.0,57901.0,0.00922]
[1723748429143,1.06361973,57902.0,57901.0,0.00922]
[1723748429553,1.07967045,57902.0,57901.0,0.00922]
[1723748429760,1.42308145,57902.0,57901.0,0.01022]
[1723748429973,1.5653896,57902.0,57901.0,0.01022]
[1723748430178,1.60724708,57902.0,57901.0,0.01022]
[1723748430796,1.58133888,57902.0,57901.0,0.01022]
[1723748431205,1.60724323,57902.0,57901.0,0.01022]
[1723748431627,1.71646935,57902.0,57901.0,0.01022]
[1723748431831,2.06188035,57902.0,57901.0,0.01022]
[1723748432480,1.63616935,57902.0,57901.0,0.01022]
[1723748432741,1.10545093,57902.0,57901.0,0.00822]
[1723748432949,1.0965926,57902.0,57901.0,0.00822]
[1723748433155,1.4530036,57902.0,57901.0,0.00822]
[1723748433370,1.46286193,57902.0,57901.0,0.00822]
[1723748433618,1.62510339,57902.0,57901.0,0.00822]
[1723748433868,1.64210339,57902.0,57901.0,0.00822]
[1723748434139,1.66510339,57902.0,57901.0,0.00822]
[1723748434392,1.6415596,57902.0,57901.0,0.00822]
[1723748434608,2.21903692,57902.0,57901.0,0.00822]
[1723748434817,2.24020034,57902.0,57901.0,0.00822]
[1723748435020,2.58561134,57902.0,57901.0,0.00822]
[1723748435480,0.518349,57876.0,57875.0,0.0659]
[1723748435687,1.38103554,57876.0,57875.0,0.0659]
[1723748435919,1.209565,57872.0,57871.0,0.0002]
[1723748436131,1.55263476,57872.0,57871.0,0.0002]
[1723748436356,1.55263476,57872.0,57847.0,0.135121]
[1723748436357,0.345709,57852.0,57847.0,0.135121]
[1723748436569,0.864272,57852.0,57847.0,0.135121]
[1723748436775,1.232981,57852.0,57847.0,0.135121]
[1723748436983,1.36199086,57852.0,57847.0,0.0659]
[1723748437195,1.52783364,57852.0,57847.0,0.0659]
[1723748437405,1.50483364,57852.0,57847.0,0.0659]
[1723748437611,1.38153554,57852.0,57847.0,0.0659]
[1723748437921,1.39553554,57852.0,57847.0,0.0659]
[1723748438120,1.41853554,57852.0,57847.0,0.0659]
[1723748438363,1.07282654,57852.0,57847.0,0.0659]
[1723748438575,1.07365777,57852.0,57847.0,0.0659]
[1723748438787,1.21559235,57852.0,57847.0,0.0659]
[1723748439211,0.69094877,57852.0,57847.0,0.0659]
[1723748439421,0.69094877,57852.0,57851.0,0.0805]
[1723748439422,0.01383123,57852.0,57851.0,0.0805]
[1723748439833,0.01283123,57852.0,57851.0,0.253357]
[1723748440044,0.01283123,57852.0,57851.0,0.664972]
[1723748440045,0.02083123,57852.0,57851.0,0.664972]
[1723748440252,0.01283123,57852.0,57851.0,0.319257]
[1723748440494,0.01283123,57852.0,57851.0,0.664972]
[1723748440699,0.172822,57863.0,57854.0,0.0803]
[1723748440917,0.172808,57868.0,57857.0,0.1494]
[1723748441135,0.172811,57867.0,57859.0,0.0828]
[1723748441336,0.00300842,57869.0,57859.0,0.0828]
[1723748441544,0.00300842,57869.0,57860.0,0.0828]
[1723748441779,0.172808,57868.0,57861.0,0.0828]
[1723748441995,0.345594,57872.0,57861.0,0.0828]
[1723748441996,0.172805,57869.0,57861.0,0.0828]
[1723748442205,0.1728,57871.0,57861.0,0.0828]
[1723748442409,0.1728,57871.0,57862.0,0.172824]
[1723748442624,0.1728,57871.0,57861.0,0.0828]
[1723748442625,0.51466362,57882.0,57861.0,0.0828]
[1723748442828,0.172805,57869.0,57861.0,0.0828]
[1723748443060,0.002,57863.0,57862.0,0.08577727]
[1723748443260,0.002,57863.0,57861.0,0.0828]
[1723748443493,0.002,57863.0,57861.0,0.0778]
[1723748443702,0.34561,57869.0,57861.0,0.0778]
[1723748444128,0.94989927,57862.0,57861.0,0.001]
[1723748444341,1.03567654,57862.0,57861.0,0.001]
[1723748444545,1.03567654,57862.0,57854.0,0.0603]
[1723748444546,0.172841,57857.0,57854.0,0.0603]
[1723748444760,0.17155454,57862.0,57854.0,0.0603]
[1723748444761,0.691382,57855.0,57854.0,0.0603]
[1723748444961,0.864227,57855.0,57854.0,0.0603]
[1723748445170,0.69009054,57855.0,57854.0,0.0603]
[1723748445382,1.03578154,57855.0,57854.0,0.0603]
[1723748445805,1.04149309,57855.0,57854.0,0.0603]
[1723748446015,0.69580209,57855.0,57854.0,0.0603]
[1723748446220,0.69009054,57855.0,57854.0,0.0603]
[1723748446630,0.69009054,57855.0,57854.0,0.0633]
[1723748446829,1.03578154,57855.0,57854.0,0.0633]
[1723748447065,1.03578154,57855.0,57854.0,0.003]
[1723748447294,0.518563,57852.0,57851.0,0.0792]
[1723748447507,1.38153554,57852.0,57851.0,0.0002]
[1723748447717,1.53350368,57852.0,57851.0,0.0002]
[1723748448422,0.518563,57852.0,57851.0,0.00016]
[1723748448637,0.518563,57852.0,57851.0,0.07916]
[1723748449042,0.346696,57855.0,57851.0,0.07916]
[1723748449268,0.172852,57853.0,57851.0,0.07916]
[1723748449691,0.001,57852.0,57851.0,0.07916]
[1723748449901,0.519563,57852.0,57851.0,0.07916]
[1723748450111,0.518563,57852.0,57851.0,0.07916]
[1723748450328,0.345677,57858.0,57851.0,0.07916]
[1723748450329,0.17285,57854.0,57851.0,0.07916]
[1723748450531,0.173854,57852.0,57851.0,0.08316]
[1723748450741,0.519563,57852.0,57851.0,0.08316]
[1723748450950,0.866272,57852.0,57851.0,0.08316]
[1723748451195,0.866272,57852.0,57851.0,0.07916]
[1723748451196,0.864272,57852.0,57851.0,0.07916]
[1723748451411,0.518563,57852.0,57851.0,0.07916]
[1723748451625,0.518563,57852.0,57851.0,0.08216]
[1723748451831,1.03582654,57852.0,57851.0,0.00316]
[1723748452044,1.03582654,57852.0,57851.0,0.00016]
[1723748452258,1.17397919,57852.0,57851.0,0.00016]
[1723748452465,1.54840015,57852.0,57851.0,0.00016]
[1723748452674,1.54268819,57852.0,57851.0,0.00016]
[1723748453314,1.52068819,57852.0,57851.0,0.00016]
[1723748453505,1.52168819,57852.0,57851.0,0.00416]
[1723748454133,0.866272,57852.0,57851.0,0.00416]
[1723748454343,0.174854,57852.0,57851.0,0.08316]
[1723748455189,0.002,57852.0,57851.0,0.08316]
[1723748455405,0.002,57852.0,57851.0,0.14406]
[1723748455847,0.174854,57852.0,57851.0,0.14406]
[1723748457210,0.002,57852.0,57851.0,0.14406]
[1723748457471,0.172818,57865.0,57856.0,0.1407]
[1723748457707,0.2246,57877.0,57856.0,0.1407]
[1723748457708,0.172826,57862.0,57856.0,0.1407]
[1723748457950,0.17155454,57876.0,57859.0,0.422765]
[1723748458170,0.17155454,57876.0,57868.0,0.0771]
[1723748458171,0.00570938,57875.0,57868.0,0.0771]
[1723748458626,0.00570938,57875.0,57858.0,0.08577727]
[1723748458627,0.00570893,57876.0,57870.0,0.0762]
[1723748458847,0.172778,57878.0,57870.0,0.1762]
[1723748459474,0.172781,57877.0,57870.0,0.1762]
[1723748459689,0.172777,57879.0,57870.0,0.1762]
[1723748459897,0.172777,57879.0,57870.0,0.348999]
[1723748460110,0.22338634,57879.0,57870.0,0.1772]
[1723748460324,0.345518,57884.0,57870.0,0.1772]
[1723748460325,0.345518,57884.0,57871.0,0.08577727]
[1723748460536,0.00570844,57883.0,57872.0,0.0762]
[1723748460740,0.001,57878.0,57874.0,0.0762]
[1723748460972,0.172775,57879.0,57874.0,0.0762]
[1723748461181,0.172786,57875.0,57874.0,0.0762]
[1723748461394,0.518358,57875.0,57874.0,0.0762]
[1723748461603,0.518367,57874.0,57873.0,0.0662]
[1723748461814,0.86399,57871.0,57870.0,0.006]
[1723748462024,0.00570882,57871.0,57870.0,0.006]
[1723748462241,0.001,57879.0,57877.0,0.172779]
[1723748462242,0.004,57879.0,57877.0,0.172779]
[1723748462448,0.004,57879.0,57873.0,0.0662]
[1723748462650,0.004,57879.0,57874.0,0.0762]
[1723748462651,0.001,57879.0,57874.0,0.0762]
[1723748463267,0.001,57879.0,57874.0,0.345576]
[1723748463470,0.001,57879.0,57873.0,0.0662]
[1723748463471,0.001,57879.0,57877.0,0.001]
[1723748463908,0.345512,57886.0,57875.0,0.0762]
[1723748463909,0.00570804,57880.0,57875.0,0.0762]
[1723748464120,0.345526,57883.0,57875.0,0.0762]
[1723748464331,0.345536,57881.0,57875.0,0.0762]
[1723748464539,0.00570804,57880.0,57875.0,0.0762]
[1723748464741,0.17847704,57881.0,57875.0,0.0762]
[1723748464949,0.00570804,57880.0,57875.0,0.0762]
[1723748465153,0.172766,57882.0,57875.0,0.0762]
[1723748465360,0.345519,57884.0,57875.0,0.0762]
[1723748465565,0.00570819,57881.0,57875.0,0.0762]
[1723748465779,0.51466362,57881.0,57875.0,0.0792]
[1723748465982,1.516581,57876.0,57875.0,0.003]
[1723748466186,1.85969008,57876.0,57875.0,0.003]
[1723748466416,2.24434634,57876.0,57875.0,0.003]
[1723748466976,1.89878034,57876.0,57875.0,0.003]
[1723748467179,1.4201258,57876.0,57875.0,0.004]
[1723748467406,0.7059938,57876.0,57875.0,0.001]
[1723748467605,0.3,57876.0,57875.0,0.0621]
[1723748467805,0.3,57876.0,57875.0,0.238886]
[1723748468033,0.3,57876.0,57875.0,0.584458]
[1723748468233,0.3,57876.0,57875.0,0.580458]
[1723748468437,0.3,57876.0,57875.0,0.661458]
[1723748468606,0.3,57876.0,57875.0,0.419886]
[1723748468793,0.3,57876.0,57875.0,0.764458]
[1723748469218,0.3,57876.0,57875.0,1.28258454]
[1723748469219,0.301,57876.0,57875.0,1.28258454]
[1723748469438,0.3,57876.0,57875.0,1.62715654]
[1723748469847,0.3,57876.0,57875.0,1.62815654]
[1723748469848,0.301,57876.0,57875.0,1.62815654]
[1723748470073,0.3,57876.0,57875.0,0.2421]
[1723748470274,0.3,57876.0,57875.0,0.414886]
[1723748470499,0.301,57876.0,57875.0,0.761458]
[1723748470704,0.302,57876.0,57875.0,0.772458]
[1723748470928,0.302,57876.0,57875.0,0.2541]
[1723748471158,0.302,57876.0,57875.0,1.37536181]
[1723748471364,0.302,57876.0,57875.0,1.72093381]
[1723748471578,0.2354,57876.0,57875.0,1.72093381]
[1723748471774,0.2344,57876.0,57875.0,1.70993381]
[1723748471968,0.2334,57876.0,57875.0,2.65213381]
[1723748472177,0.2354,57876.0,57875.0,2.66613381]
[1723748472343,0.2354,57876.0,57875.0,2.66313381]
[1723748472749,0.2364,57876.0,57875.0,2.66613381]
[1723748472953,0.2354,57876.0,57875.0,2.32056181]
[1723748473127,0.2344,57876.0,57875.0,2.31756181]
[1723748473328,0.2354,57876.0,57875.0,1.8996659]
[1723748473664,0.2354,57876.0,57875.0,1.72511136]
[1723748473890,0.2334,57876.0,57875.0,1.71411136]
[1723748474087,0.2344,57876.0,57875.0,1.72611136]
[1723748474628,0.2334,57876.0,57875.0,2.05968336]
[1723748474828,0.2344,57876.0,57875.0,2.07168336]
[1723748475028,0.2344,57876.0,57875.0,1.72611136]
[1723748475631,0.2354,57876.0,57875.0,1.2003]
[1723748476015,0.2344,57876.0,57875.0,1.0973]
[1723748476216,0.408183,57876.0,57875.0,1.1003]
[1723748476568,0.752749,57876.0,57875.0,1.0272]
[1723748476772,1.44159008,57876.0,57875.0,0.9462]
[1723748476972,1.72535608,57876.0,57875.0,0.9552]
[1723748477147,1.26986954,57876.0,57875.0,0.9552]
[1723748477347,1.26986954,57876.0,57875.0,0.9582]
[1723748477348,1.27086954,57876.0,57875.0,0.9582]
[1723748477548,1.61643554,57876.0,57875.0,0.9582]
[1723748477757,1.26986954,57876.0,57875.0,0.9462]
[1723748477986,1.61543554,57876.0,57875.0,0.9462]
[1723748478242,1.62443554,57876.0,57875.0,0.9472]
[1723748478706,1.61443554,57876.0,57875.0,0.9432]
[1723748478905,1.62643554,57876.0,57875.0,0.9432]
[1723748479111,1.28086954,57876.0,57875.0,0.9432]
[1723748479515,1.62643554,57876.0,57875.0,0.9432]
[1723748479752,1.61443554,57876.0,57875.0,0.9432]
[1723748480021,1.097315,57876.0,57875.0,0.9432]
[1723748480265,0.2454,57876.0,57875.0,0.9432]
[1723748480523,0.2434,57876.0,57875.0,0.9442]
[1723748480738,0.416183,57876.0,57875.0,0.9442]
[1723748480939,1.63858958,57876.0,57875.0,0.9432]
[1723748481152,1.98415558,57876.0,57875.0,0.9432]
[1723748481355,1.99015558,57876.0,57875.0,0.9442]
[1723748481581,2.006318,57876.0,57875.0,0.9442]
[1723748481790,2.017318,57876.0,57875.0,0.9442]
[1723748481987,2.000318,57876.0,57875.0,0.9432]
[1723748482200,2.006318,57876.0,57875.0,0.9442]
[1723748482414,2.469684,57876.0,57875.0,0.9442]
[1723748482619,2.112118,57876.0,57875.0,0.9442]
[1723748482847,2.08796396,57876.0,57875.0,0.9442]
[1723748483051,2.10096396,57876.0,57875.0,0.9442]
[1723748483459,2.10096396,57876.0,57875.0,0.9432]
[1723748483460,2.09496396,57876.0,57875.0,0.9432]
[1723748483873,0.79091142,57876.0,57875.0,0.9442]
[1723748484284,0.774749,57876.0,57875.0,0.9442]
[1723748484954,1.120315,57876.0,57875.0,0.9442]
[1723748485175,0.774749,57876.0,57875.0,0.9442]
[1723748485611,0.774749,57876.0,57875.0,0.945022]
[1723748485612,0.2564,57876.0,57875.0,0.945022]
[1723748485815,0.774749,57876.0,57875.0,0.945022]
[1723748486021,0.43008721,57876.0,57875.0,0.945022]
[1723748486284,1.63813197,57876.0,57875.0,0.945022]
[1723748486984,1.71367739,57876.0,57875.0,0.945022]
[1723748487202,1.64430097,57876.0,57875.0,0.944022]
[1723748487410,1.64430097,57876.0,57875.0,0.945022]
[1723748487615,1.65430097,57876.0,57875.0,0.945022]
[1723748488041,2.01286697,57876.0,57875.0,0.944022]
[1723748488251,2.32572151,57876.0,57875.0,0.944022]
[1723748488461,2.41572151,57876.0,57875.0,0.944022]
[1723748488855,2.41272151,57876.0,57875.0,0.944022]
[1723748489114,2.42872151,57876.0,57875.0,0.945022]
[1723748489811,2.76828751,57876.0,57875.0,0.945022]
[1723748490049,2.43280103,57876.0,57875.0,0.945022]
[1723748490267,2.27424649,57876.0,57875.0,0.945022]
[1723748490741,1.65430097,57876.0,57875.0,0.945022]
[1723748491030,0.77544543,57876.0,57875.0,0.945022]
[1723748491278,0.25709643,57876.0,57875.0,1.023922]
[1723748491518,0.25709643,57876.0,57875.0,1.123922]
[1723748491741,0.25709643,57876.0,57875.0,1.296708]
[1723748492177,0.25709643,57876.0,57875.0,2.30468381]
[1723748492178,0.22168196,57876.0,57875.0,2.30468381]
[1723748492394,0.22168196,57876.0,57875.0,2.65025581]
[1723748492395,0.21068196,57876.0,57875.0,2.65025581]
[1723748492633,0.12063038,57876.0,57875.0,2.65225581]
[1723748492833,0.0009064,57879.0,57878.0,0.657731]
[1723748493035,0.0009064,57879.0,57878.0,1.27483954]
[1723748493240,0.0009064,57879.0,57878.0,1.62039354]
[1723748494108,0.51466362,57901.0,57881.0,0.0789]
[1723748494308,0.172713,57900.0,57892.0,0.172735]
[1723748494516,0.51466362,57901.0,57894.0,0.0632]
[1723748494723,0.17269,57907.0,57894.0,0.0632]
[1723748494929,0.0009053,57908.0,57895.0,0.08325405]
[1723748495136,0.0009053,57908.0,57901.0,0.172706]
[1723748495343,0.0009053,57908.0,57902.0,0.0798]
[1723748495344,0.172694,57906.0,57902.0,0.0798]
[1723748495549,0.345382,57907.0,57902.0,0.0798]
[1723748495764,0.3462813,57908.0,57902.0,0.0798]
[1723748495969,0.1735943,57908.0,57902.0,0.0798]
[1723748496174,0.172691,57907.0,57902.0,0.0798]
[1723748496379,0.345383,57907.0,57902.0,0.0798]
[1723748496591,0.0099053,57908.0,57902.0,0.0798]
[1723748496592,0.003,57906.0,57902.0,0.0798]
[1723748496741,0.003,57906.0,57902.0,0.0808]
[1723748497889,0.005,57907.0,57902.0,0.0808]
[1723748498100,0.00090421,57906.0,57902.0,0.0808]
[1723748498309,0.00090421,57906.0,57902.0,0.08425375]
[1723748498494,0.00090421,57906.0,57905.0,0.518089]
[1723748498726,0.00090421,57906.0,57905.0,1.27743654]
[1723748498977,0.00906401,57919.0,57910.0,0.1424]
[1723748499193,0.00906401,57919.0,57918.0,0.08577727]
[1723748499411,0.00906401,57919.0,57918.0,0.39973181]
[1723748499623,0.00906401,57919.0,57918.0,0.49973181]
[1723748501541,0.01006401,57919.0,57918.0,0.51373181]
[1723748501985,0.01106401,57919.0,57918.0,0.43895454]
[1723748502211,0.00906401,57919.0,57918.0,0.41395454]
[1723748502433,0.009053,57934.0,57925.0,0.002]
[1723748502646,0.009053,57934.0,57933.0,0.41957727]
[1723748502854,0.009053,57934.0,57933.0,1.46841954]
[1723748503053,0.009053,57934.0,57933.0,1.24381954]
[1723748503258,0.009053,57934.0,57933.0,0.89859354]
[1723748503674,0.009053,57934.0,57933.0,0.2092]
[1723748503879,0.010053,57934.0,57933.0,1.58904554]
[1723748504115,0.010053,57934.0,57933.0,1.59955029]
[1723748505005,0.009053,57934.0,57933.0,1.59955029]
[1723748505215,0.009053,57934.0,57933.0,1.61355029]
[1723748505894,0.010053,57934.0,57933.0,1.62755029]
[1723748506138,0.010053,57934.0,57933.0,1.61355029]
[1723748506574,0.011053,57934.0,57933.0,1.62755029]
[1723748507239,0.011053,57934.0,57933.0,1.97277629]
[1723748507445,0.005963,57934.0,57933.0,2.00577629]
[1723748507646,0.00906401,57937.0,57936.0,1.553436]
[1723748507870,0.0009053,57955.0,57954.0,0.17255]
[1723748508084,0.0009053,57955.0,57954.0,0.697851]
[1723748508474,0.0009053,57955.0,57954.0,1.21450654]
[1723748508719,0.0008653,57955.0,57954.0,1.64538481]
[1723748509218,0.0008653,57955.0,57954.0,1.30028381]
[1723748509449,0.0008653,57955.0,57954.0,1.55960754]
[1723748509654,0.0008653,57955.0,57954.0,0.86940554]
[1723748509860,0.0018653,57955.0,57954.0,0.53430454]
[1723748510071,0.0008653,57955.0,57954.0,0.59464799]
[1723748510322,0.0002,57959.0,57955.0,0.01]
[1723748510526,0.0002,57959.0,57958.0,0.48193181]
[1723748510739,0.0002,57959.0,57958.0,0.74543181]
[1723748510943,0.009053,57964.0,57960.0,0.1405]
[1723748511150,0.009053,57964.0,57963.0,0.32205454]
[1723748511364,0.00046009,57966.0,57965.0,0.01]
[1723748511585,0.009031,57988.0,57967.0,0.1405]
[1723748511772,0.51466362,57974.0,57971.0,0.17155454]
[1723748512024,0.181481,57988.0,57972.0,0.1802]
[1723748512253,0.009031,57988.0,57973.0,0.17155454]
[1723748512458,0.009031,57988.0,57974.0,0.1]
[1723748512666,0.353932,57988.0,57975.0,0.17155454]
[1723748512870,0.009031,57988.0,57976.0,0.1]
[1723748513075,0.009031,57988.0,57976.0,0.41205454]
[1723748513280,0.009031,57988.0,57976.0,0.92950954]
[1723748513488,0.009031,57988.0,57976.0,1.27447954]
[1723748513689,0.181481,57988.0,57976.0,1.27447954]
[1723748513900,0.009031,57988.0,57976.0,1.27447954]
[1723748514401,0.009031,57988.0,57978.0,0.862395]
[1723748514634,0.009031,57988.0,57978.0,1.47890754]
[1723748514864,0.009031,57988.0,57978.0,0.44403354]
[1723748515101,0.009031,57988.0,57978.0,1.21044954]
[1723748515362,0.009031,57988.0,57978.0,1.55540754]
[1723748515770,0.009031,57988.0,57978.0,1.22444954]
[1723748515976,0.009031,57988.0,57978.0,1.22051534]
[1723748516427,0.009031,57988.0,57978.0,1.24751534]
[1723748516632,0.009031,57988.0,57978.0,1.23451534]
[1723748517676,0.009031,57988.0,57978.0,1.56547334]
[1723748517882,0.009031,57988.0,57979.0,0.517428]
[1723748518105,0.009031,57988.0,57979.0,1.21043454]
[1723748518527,0.009031,57988.0,57980.0,0.593919]
[1723748518758,0.009031,57988.0,57980.0,1.11041954]
[1723748519000,0.009031,57988.0,57980.0,1.45536554]
[1723748519326,0.009031,57988.0,57980.0,1.55536554]
[1723748519689,0.009031,57988.0,57980.0,1.59676661]
[1723748519898,0.009031,57988.0,57980.0,1.21041954]
[1723748520774,0.009031,57988.0,57980.0,1.55536554]
[1723748521019,0.009031,57988.0,57980.0,1.56936554]
[1723748521264,0.009031,57988.0,57980.0,1.22441954]
[1723748521495,0.009031,57988.0,57980.0,1.23741954]
[1723748522278,0.009031,57988.0,57980.0,1.24647254]
[1723748522533,0.009031,57988.0,57987.0,1.207164]
[1723748522791,0.009031,57988.0,57987.0,1.47871854]
[1723748523287,0.008991,57988.0,57987.0,1.47871854]
[1723748523495,0.008991,57988.0,57987.0,1.13381454]
[1723748524317,0.172414,58000.0,57992.0,0.172436]
[1723748524597,0.172414,58000.0,57987.0,0.27955454]
[1723748524598,0.51466362,57998.0,57987.0,0.12300821]
[1723748524807,0.17242,57998.0,57990.0,0.172441]
[1723748525038,0.17242,57998.0,57991.0,0.1]
[1723748525505,0.172425,57996.0,57991.0,0.1]
[1723748525735,0.172424,57997.0,57991.0,0.1]
[1723748525963,1e-08,57998.0,57991.0,0.1]
[1723748526237,1e-08,57998.0,57987.0,0.11345671]
[1723748526459,1e-08,57998.0,57995.0,0.172428]
[1723748526640,1e-08,57998.0,57992.0,0.172435]
[1723748527103,1e-08,57998.0,57993.0,0.172432]
[1723748527315,1e-08,57998.0,57992.0,0.172437]
[1723748527528,1e-08,57998.0,57990.0,0.344884]
[1723748527529,0.17241901,57998.0,57990.0,0.344884]
[1723748527734,0.17241901,57998.0,57991.0,0.272439]
[1723748527942,0.00100001,57998.0,57991.0,0.272439]
[1723748528148,0.00100001,57998.0,57992.0,0.172437]
[1723748528569,0.00100001,57998.0,57991.0,0.1]
[1723748528772,0.00100001,57998.0,57992.0,0.172436]
[1723748529004,1e-08,57998.0,57993.0,0.172434]
[1723748529212,0.00100001,57998.0,57991.0,0.1]
[1723748529436,0.00100001,57998.0,57994.0,0.17243]
[1723748529649,0.00100001,57998.0,57992.0,0.344874]
[1723748529847,0.00100001,57998.0,57994.0,0.17243]
[1723748530059,0.00100001,57998.0,57997.0,0.517267]
[1723748530270,0.00100001,57998.0,57997.0,0.1]
[1723748530477,0.00100001,57998.0,57987.0,0.01000821]
[1723748530835,0.0789,57997.0,57987.0,0.01000821]
[1723748530836,0.0789,57997.0,57985.0,0.1]
[1723748531046,0.0789,57997.0,57986.0,0.172454]
[1723748531047,0.172433,57994.0,57986.0,0.172454]
[1723748531261,0.172444,57990.0,57987.0,0.1]
[1723748531459,0.0789,57997.0,57984.0,0.48902774]
[1723748531460,0.0662,57992.0,57984.0,0.48902774]
[1723748531680,0.0755,57991.0,57984.0,0.17246]
[1723748531838,0.172446,57989.0,57983.0,0.01041078]
[1723748532046,0.0755,57991.0,57979.0,1.143447]
[1723748532272,0.0755,57991.0,57984.0,0.344921]
[1723748532473,0.0755,57991.0,57987.0,0.003]
[1723748532680,0.0755,57996.0,57991.0,0.17244]
[1723748532880,0.0755,57996.0,57987.0,0.17455454]
[1723748532881,0.0755,57996.0,57987.0,0.003]
[1723748533088,0.172432,57994.0,57987.0,0.003]
[1723748533293,1e-08,57998.0,57995.0,0.172426]
[1723748533703,1e-08,57998.0,57996.0,0.172425]
[1723748533909,1e-08,57998.0,57989.0,0.0816]
[1723748534117,0.172427,57996.0,57989.0,0.1]
[1723748534312,0.172424,57997.0,57989.0,0.1]
[1723748534706,0.172424,57997.0,57990.0,0.172442]
[1723748534907,0.34485,57997.0,57996.0,0.001]
[1723748535148,0.937622,57997.0,57996.0,0.001]
[1723748535354,1.55939044,57997.0,57996.0,0.001]
[1723748535561,0.172449,57988.0,57987.0,0.004]
[1723748535765,1.41210634,57988.0,57987.0,0.004]
[1723748535976,0.86235,57981.0,57980.0,0.000821]
[1723748536184,0.6656739,57981.0,57980.0,0.000821]
[1723748536385,1.01061879,57981.0,57980.0,0.000821]
[1723748537200,1.35555879,57981.0,57980.0,0.000821]
[1723748537414,1.18217333,57981.0,57980.0,0.000821]
[1723748537623,1.55011333,57981.0,57980.0,0.000821]
[1723748537831,1.55011333,57981.0,57980.0,0.001821]
[1723748537832,2.01827066,57981.0,57980.0,0.001821]
[1723748538045,2.02870148,57981.0,57980.0,0.001821]
[1723748538256,2.02870148,57981.0,57980.0,0.002821]
[1723748538257,1.54194454,57981.0,57980.0,0.002821]
[1723748538461,1.19017684,57981.0,57980.0,0.002821]
[1723748538673,1.17400454,57981.0,57980.0,0.002821]
[1723748539088,1.51394454,57981.0,57980.0,0.001821]
[1723748539336,1.51094454,57981.0,57980.0,0.000821]
[1723748539537,1.51094454,57981.0,57980.0,0.001821]
[1723748539538,1.51394454,57981.0,57980.0,0.001821]
[1723748539985,1.70345504,57981.0,57980.0,0.001821]
[1723748540469,2.04839504,57981.0,57980.0,0.001821]
[1723748540714,1.70345504,57981.0,57980.0,0.001821]
[1723748540960,2.04839504,57981.0,57980.0,0.001821]
[1723748541153,2.05939504,57981.0,57980.0,0.001821]
[1723748541366,2.06239504,57981.0,57980.0,0.002821]
[1723748541583,1.55094454,57981.0,57980.0,0.002821]
[1723748543369,1.52794454,57981.0,57980.0,0.002821]
[1723748543599,1.18300454,57981.0,57980.0,0.002821]
[1723748543838,0.26965454,57981.0,57980.0,0.002821]
[1723748544075,0.017,57981.0,57980.0,0.175294]
[1723748544306,0.0811,57994.0,57982.0,0.344933]
[1723748544541,0.0811,57994.0,57980.0,0.508167]
[1723748544542,0.34487,57993.0,57985.0,0.08577727]
[1723748544781,0.172447,57989.0,57985.0,0.08577727]
[1723748545276,0.0811,58006.0,57996.0,0.172425]
[1723748545514,1e-08,58007.0,57998.0,0.172417]
[1723748545761,1e-08,58007.0,58001.0,0.344821]
[1723748545996,1e-08,58007.0,58003.0,0.172403]